[Event "Live Chess"]
[Site "Chess.com"]
[Date "2024.06.02"]
[Round "-"]
[White "Dhaydon19"]
[Black "nigelst"]
[Result "1-0"]
[WhiteElo "2681"]
[BlackElo "1735"]
[TimeControl "300"]
[EndTime "23:02:26 PDT"]
[Termination "Dhaydon19 won by resignation"]

1. d4 {[%clk 0:04:58.2]} 1... Nf6 {[%clk 0:04:58]} 2. Nf3 {[%clk 0:04:57.7]}
2... e6 {[%clk 0:04:56.4]} 3. g3 {[%clk 0:04:57.3]} 3... c5 {[%clk 0:04:54.9]}
4. c3 {[%clk 0:04:56.8]} 4... b6 {[%clk 0:04:52.7]} 5. Bg2 {[%clk 0:04:55.5]}
5... Bb7 {[%clk 0:04:51.4]} 6. O-O {[%clk 0:04:55]} 6... cxd4 {[%clk 0:04:49.4]}
7. cxd4 {[%clk 0:04:54.1]} 7... d6 {[%clk 0:04:48.7]} 8. Nc3 {[%clk 0:04:53.5]}
8... Be7 {[%clk 0:04:47]} 9. Qd3 {[%clk 0:04:52]} 9... Nbd7 {[%clk 0:04:45]} 10.
Rd1 {[%clk 0:04:49.1]} 10... O-O {[%clk 0:04:43]} 11. Bf4 {[%clk 0:04:47.2]}
11... Rc8 {[%clk 0:04:39.7]} 12. Rac1 {[%clk 0:04:44.5]} 12... Re8 {[%clk
0:04:21.2]} 13. e4 {[%clk 0:04:37.6]} 13... Bf8 {[%clk 0:04:13.9]} 14. e5 {[%clk
0:04:34.9]} 14... Nd5 {[%clk 0:04:09.7]} 15. Ng5 {[%clk 0:04:31.3]} 15... g6
{[%clk 0:03:44.5]} 16. Nxd5 {[%clk 0:04:29.6]} 16... Bxd5 {[%clk 0:03:41.9]} 17.
Bxd5 {[%clk 0:04:27.2]} 17... exd5 {[%clk 0:03:40.9]} 18. Qb3 {[%clk 0:04:15.3]}
18... dxe5 {[%clk 0:03:28.3]} 19. Qxd5 {[%clk 0:04:10.5]} 19... Qe7 {[%clk
0:03:09.8]} 20. Rxc8 {[%clk 0:04:05.4]} 20... Rxc8 {[%clk 0:03:08.1]} 21. dxe5
{[%clk 0:04:04.8]} 21... Rd8 {[%clk 0:02:44.2]} 22. Nxf7 {[%clk 0:04:00]} 22...
Qxf7 {[%clk 0:02:32.2]} 23. e6 {[%clk 0:03:57.7]} 23... Qf5 {[%clk 0:02:24.9]}
24. Qxf5 {[%clk 0:03:56.4]} 24... gxf5 {[%clk 0:02:22.4]} 25. exd7 {[%clk
0:03:55]} 25... Kf7 {[%clk 0:02:18.3]} 26. Bc7 {[%clk 0:03:54.1]} 26... Be7
{[%clk 0:02:15.1]} 27. Bxd8 {[%clk 0:03:53.3]} 27... Bxd8 {[%clk 0:02:13.9]} 28.
Re1 {[%clk 0:03:52.9]} 28... Bc7 {[%clk 0:02:05.9]} 29. Re8 {[%clk 0:03:50.9]}
29... b5 {[%clk 0:02:00.4]} 30. d8=Q {[%clk 0:03:48.1]} 30... Bxd8 {[%clk
0:01:55.3]} 31. Rxd8 {[%clk 0:03:47.6]} 1-0

[Event "Live Chess"]
[Site "Chess.com"]
[Date "2024.06.02"]
[Round "-"]
[White "JoeyCage"]
[Black "booktrunk"]
[Result "1-0"]
[WhiteElo "2390"]
[BlackElo "1539"]
[TimeControl "300"]
[EndTime "23:02:28 PDT"]
[Termination "JoeyCage won by resignation"]

1. e4 {[%clk 0:04:57]} 1... b6 {[%clk 0:04:56.4]} 2. d4 {[%clk 0:04:55.8]} 2...
Bb7 {[%clk 0:04:53.9]} 3. Nc3 {[%clk 0:04:55]} 3... h6 {[%clk 0:04:50.6]} 4. a3
{[%clk 0:04:53.1]} 4... e6 {[%clk 0:04:50.5]} 5. Nf3 {[%clk 0:04:51.6]} 5... a5
{[%clk 0:04:49.3]} 6. Bd3 {[%clk 0:04:49.8]} 6... Nf6 {[%clk 0:04:47]} 7. O-O
{[%clk 0:04:48.4]} 7... c5 {[%clk 0:04:44.7]} 8. e5 {[%clk 0:04:41.8]} 8... Nd5
{[%clk 0:04:36.6]} 9. Nxd5 {[%clk 0:04:38.8]} 9... Bxd5 {[%clk 0:04:34.7]} 10.
c4 {[%clk 0:04:37.6]} 10... Bb7 {[%clk 0:04:31.7]} 11. Be3 {[%clk 0:04:31.2]}
11... cxd4 {[%clk 0:04:29]} 12. Nxd4 {[%clk 0:04:28.3]} 12... Nc6 {[%clk
0:04:27]} 13. Nxc6 {[%clk 0:04:25.2]} 13... Bxc6 {[%clk 0:04:25]} 14. Qg4 {[%clk
0:04:23.1]} 14... h5 {[%clk 0:04:19.6]} 15. Qg3 {[%clk 0:04:20.1]} 15... h4
{[%clk 0:04:16.9]} 16. Qg4 {[%clk 0:04:18.5]} 16... Rb8 {[%clk 0:04:05.7]} 17.
f4 {[%clk 0:04:13.4]} 17... f5 {[%clk 0:04:01.5]} 18. exf6 {[%clk 0:03:57.7]}
18... Qxf6 {[%clk 0:03:58.2]} 19. f5 {[%clk 0:03:56.2]} 19... e5 {[%clk
0:03:51.2]} 20. Bg5 {[%clk 0:03:50.4]} 20... Qd6 {[%clk 0:03:47.2]} 21. Rad1
{[%clk 0:03:46.8]} 21... Qc5+ {[%clk 0:03:42.4]} 22. Kh1 {[%clk 0:03:45]} 22...
Be7 {[%clk 0:03:37.8]} 23. f6 {[%clk 0:03:38.2]} 23... gxf6 {[%clk 0:03:36]} 24.
Bg6+ {[%clk 0:03:36]} 24... Kd8 {[%clk 0:03:34.1]} 25. Bxf6 {[%clk 0:03:29.1]}
25... Bxf6 {[%clk 0:03:32.3]} 26. Rxf6 {[%clk 0:03:27.1]} 26... Kc7 {[%clk
0:03:30.3]} 27. Rfd6 {[%clk 0:03:16.7]} 27... Rhg8 {[%clk 0:03:26.8]} 28. Rxd7+
{[%clk 0:03:12.6]} 28... Kc8 {[%clk 0:03:11.9]} 29. Rf7+ {[%clk 0:02:59.9]} 1-0

[Event "Live Chess"]
[Site "Chess.com"]
[Date "2024.06.02"]
[Round "-"]
[White "MaximKovalenko83"]
[Black "Duke_of_Bebington"]
[Result "1-0"]
[WhiteElo "2223"]
[BlackElo "1658"]
[TimeControl "300"]
[EndTime "23:02:45 PDT"]
[Termination "MaximKovalenko83 won by resignation"]

1. d4 {[%clk 0:04:53.9]} 1... d5 {[%clk 0:04:57.4]} 2. Nf3 {[%clk 0:04:52.4]}
2... Nf6 {[%clk 0:04:56.1]} 3. c4 {[%clk 0:04:50.6]} 3... c6 {[%clk 0:04:54.9]}
4. Nc3 {[%clk 0:04:48.8]} 4... dxc4 {[%clk 0:04:53.3]} 5. a4 {[%clk 0:04:46.9]}
5... Bf5 {[%clk 0:04:44.4]} 6. Bg5 {[%clk 0:04:43.7]} 6... Nd5 {[%clk
0:04:41.8]} 7. e3 {[%clk 0:04:40.7]} 7... Nd7 {[%clk 0:04:32.7]} 8. Bxc4 {[%clk
0:04:38.7]} 8... N7f6 {[%clk 0:04:30]} 9. O-O {[%clk 0:04:36.4]} 9... e6 {[%clk
0:04:27.9]} 10. Ne5 {[%clk 0:04:32.9]} 10... Be7 {[%clk 0:04:26.3]} 11. Qe2
{[%clk 0:04:27.3]} 11... Ne4 {[%clk 0:04:17]} 12. Nxe4 {[%clk 0:04:23.1]} 12...
Bxe4 {[%clk 0:04:16.9]} 13. Bxe7 {[%clk 0:04:21.2]} 13... Qxe7 {[%clk 0:04:13]}
14. f3 {[%clk 0:04:19.2]} 14... Bg6 {[%clk 0:04:07.8]} 15. e4 {[%clk 0:04:17.2]}
15... Nc7 {[%clk 0:03:57.9]} 16. Rfd1 {[%clk 0:04:12.7]} 16... O-O {[%clk
0:03:55.8]} 17. Rac1 {[%clk 0:04:04.3]} 17... Rad8 {[%clk 0:03:52.8]} 18. a5
{[%clk 0:03:57.7]} 18... a6 {[%clk 0:03:51.5]} 19. Qe1 {[%clk 0:03:51.1]} 19...
Nb5 {[%clk 0:03:50.3]} 20. Bxb5 {[%clk 0:03:49]} 20... axb5 {[%clk 0:03:46.8]}
21. b4 {[%clk 0:03:43.5]} 21... f6 {[%clk 0:03:39.8]} 22. Ng4 {[%clk 0:03:39.2]}
22... h5 {[%clk 0:03:31]} 23. Nf2 {[%clk 0:03:34]} 23... Rd7 {[%clk 0:03:17.9]}
24. Rd3 {[%clk 0:03:18.7]} 24... Rfd8 {[%clk 0:03:13.2]} 25. Rcd1 {[%clk
0:03:14.8]} 25... Bf7 {[%clk 0:03:08.6]} 26. Qc3 {[%clk 0:03:01.8]} 26... e5
{[%clk 0:02:52.3]} 27. dxe5 {[%clk 0:02:57.6]} 27... Rxd3 {[%clk 0:02:46.1]} 28.
Rxd3 {[%clk 0:02:57.5]} 28... Rxd3 {[%clk 0:02:43.7]} 29. Nxd3 {[%clk
0:02:57.1]} 29... Bc4 {[%clk 0:02:30.4]} 30. exf6 {[%clk 0:02:55.4]} 30... gxf6
{[%clk 0:02:28.7]} 31. Nc5 {[%clk 0:02:53.6]} 31... Qd7 {[%clk 0:02:23.7]} 32.
Nxd7 {[%clk 0:02:51.7]} 1-0

[Event "Live Chess"]
[Site "Chess.com"]
[Date "2024.06.02"]
[Round "-"]
[White "Nikaru_Hikamura"]
[Black "Crowded_House"]
[Result "1-0"]
[WhiteElo "1874"]
[BlackElo "1691"]
[TimeControl "300"]
[EndTime "23:03:21 PDT"]
[Termination "Nikaru_Hikamura won by checkmate"]

1. e4 {[%clk 0:04:57.2]} 1... e6 {[%clk 0:04:58.2]} 2. d3 {[%clk 0:04:56.1]}
2... d5 {[%clk 0:04:55.9]} 3. Nd2 {[%clk 0:04:54.7]} 3... dxe4 {[%clk 0:04:54]}
4. dxe4 {[%clk 0:04:54.6]} 4... Bd7 {[%clk 0:04:53.4]} 5. Ngf3 {[%clk 0:04:54]}
5... Bc6 {[%clk 0:04:52]} 6. Bd3 {[%clk 0:04:47.4]} 6... Nf6 {[%clk 0:04:48.1]}
7. O-O {[%clk 0:04:46.3]} 7... Bc5 {[%clk 0:04:43.6]} 8. Qe2 {[%clk 0:04:42.5]}
8... O-O {[%clk 0:04:41.7]} 9. h3 {[%clk 0:04:39.5]} 9... b6 {[%clk 0:04:31.5]}
10. Rd1 {[%clk 0:04:38.7]} 10... Bb7 {[%clk 0:04:28.1]} 11. Nc4 {[%clk
0:04:32.4]} 11... Qc8 {[%clk 0:04:15.7]} 12. Bg5 {[%clk 0:04:24.7]} 12... Nfd7
{[%clk 0:04:04.8]} 13. a3 {[%clk 0:04:19.7]} 13... Nc6 {[%clk 0:03:55.1]} 14. b4
{[%clk 0:04:16.6]} 14... Bd6 {[%clk 0:03:48.6]} 15. Nxd6 {[%clk 0:04:13.6]}
15... cxd6 {[%clk 0:03:47.1]} 16. c4 {[%clk 0:04:11.8]} 16... f6 {[%clk
0:03:34.6]} 17. Bf4 {[%clk 0:04:02.7]} 17... Nce5 {[%clk 0:03:26.8]} 18. Nxe5
{[%clk 0:03:55.3]} 18... Nxe5 {[%clk 0:03:19.9]} 19. Rac1 {[%clk 0:03:50.9]}
19... Nxd3 {[%clk 0:03:09.9]} 20. Rxd3 {[%clk 0:03:48.6]} 20... Rd8 {[%clk
0:03:04.3]} 21. Rxd6 {[%clk 0:03:46.5]} 21... Rxd6 {[%clk 0:03:03]} 22. Bxd6
{[%clk 0:03:46.4]} 22... Qd7 {[%clk 0:02:50.7]} 23. c5 {[%clk 0:03:43.3]} 23...
bxc5 {[%clk 0:02:48.7]} 24. Bxc5 {[%clk 0:03:41.4]} 24... a6 {[%clk 0:02:40.4]}
25. Rd1 {[%clk 0:03:39]} 25... Qc6 {[%clk 0:02:34.3]} 26. f3 {[%clk 0:03:33.5]}
26... a5 {[%clk 0:02:23.4]} 27. Rd6 {[%clk 0:03:30.2]} 27... Qc7 {[%clk
0:02:16.5]} 28. Qc4 {[%clk 0:03:23.2]} 28... Bc8 {[%clk 0:02:07.6]} 29. Qd4
{[%clk 0:03:14.5]} 29... e5 {[%clk 0:02:00.4]} 30. Qd5+ {[%clk 0:03:08.3]} 30...
Qf7 {[%clk 0:01:49.3]} 31. Rd8# {[%clk 0:03:06.7]} 1-0

[Event "Live Chess"]
[Site "Chess.com"]
[Date "2024.06.02"]
[Round "-"]
[White "KeithArkell"]
[Black "EPotapov05"]
[Result "1-0"]
[WhiteElo "2419"]
[BlackElo "1808"]
[TimeControl "300"]
[EndTime "23:03:56 PDT"]
[Termination "KeithArkell won by resignation"]

1. d4 {[%clk 0:04:57.5]} 1... d5 {[%clk 0:04:56.9]} 2. Nf3 {[%clk 0:04:56.8]}
2... Nf6 {[%clk 0:04:55]} 3. c4 {[%clk 0:04:56.7]} 3... dxc4 {[%clk 0:04:51.1]}
4. e3 {[%clk 0:04:55.7]} 4... e6 {[%clk 0:04:49.6]} 5. Bxc4 {[%clk 0:04:54.8]}
5... c5 {[%clk 0:04:48.9]} 6. Nc3 {[%clk 0:04:53.5]} 6... Nc6 {[%clk 0:04:47.5]}
7. d5 {[%clk 0:04:52.8]} 7... exd5 {[%clk 0:04:44.5]} 8. Nxd5 {[%clk 0:04:52.1]}
8... Nxd5 {[%clk 0:04:41.6]} 9. Qxd5 {[%clk 0:04:50.7]} 9... Qxd5 {[%clk
0:04:39.4]} 10. Bxd5 {[%clk 0:04:49.8]} 10... Bd7 {[%clk 0:04:38.5]} 11. Bd2
{[%clk 0:04:47.3]} 11... Be7 {[%clk 0:04:36.1]} 12. Ke2 {[%clk 0:04:43.9]} 12...
Bf6 {[%clk 0:04:29.6]} 13. Bc3 {[%clk 0:04:43.1]} 13... Bxc3 {[%clk 0:04:28]}
14. bxc3 {[%clk 0:04:42.1]} 14... O-O {[%clk 0:04:22.4]} 15. Rhd1 {[%clk
0:04:37.7]} 15... Rfd8 {[%clk 0:04:08.3]} 16. Rab1 {[%clk 0:04:36.5]} 16... Na5
{[%clk 0:03:50]} 17. Ng5 {[%clk 0:04:34.1]} 17... Bf5 {[%clk 0:03:32.7]} 18.
Bxf7+ {[%clk 0:04:25.4]} 18... Kf8 {[%clk 0:03:28.5]} 19. Ne6+ {[%clk 0:04:22]}
19... Ke7 {[%clk 0:03:08.1]} 20. Nxd8 {[%clk 0:04:19.5]} 20... Rxd8 {[%clk
0:03:03]} 21. Rxd8 {[%clk 0:04:18]} 21... Kxd8 {[%clk 0:03:02.1]} 22. Rb5 {[%clk
0:04:06.1]} 22... b6 {[%clk 0:02:58.9]} 23. Rxa5 {[%clk 0:04:05]} 23... bxa5
{[%clk 0:02:57]} 24. a3 {[%clk 0:04:04.5]} 24... Kc7 {[%clk 0:02:48.3]} 25. Bd5
{[%clk 0:04:02.8]} 25... Kd6 {[%clk 0:02:46.4]} 26. e4 {[%clk 0:04:02.1]} 26...
Bd7 {[%clk 0:02:43]} 27. Ke3 {[%clk 0:04:01.3]} 27... g5 {[%clk 0:02:40.4]} 28.
f3 {[%clk 0:03:59.7]} 28... Ke5 {[%clk 0:02:38.5]} 29. g3 {[%clk 0:03:58.8]}
29... Bb5 {[%clk 0:02:27.2]} 30. f4+ {[%clk 0:03:56.3]} 30... gxf4+ {[%clk
0:02:19.4]} 31. gxf4+ {[%clk 0:03:33.9]} 31... Kd6 {[%clk 0:02:17.9]} 32. c4
{[%clk 0:03:33.3]} 32... Be8 {[%clk 0:02:14.6]} 33. e5+ {[%clk 0:03:32.5]} 33...
Ke7 {[%clk 0:02:12.1]} 34. Ke4 {[%clk 0:03:31.5]} 34... Bh5 {[%clk 0:02:10.1]}
35. f5 {[%clk 0:03:30.7]} 1-0

[Event "Live Chess"]
[Site "Chess.com"]
[Date "2024.06.02"]
[Round "-"]
[White "AlanBstard10"]
[Black "RockTroll"]
[Result "0-1"]
[WhiteElo "1158"]
[BlackElo "2184"]
[TimeControl "300"]
[EndTime "23:04:19 PDT"]
[Termination "RockTroll won by checkmate"]

1. b4 {[%clk 0:04:51.4]} 1... Nf6 {[%clk 0:04:58.6]} 2. a3 {[%clk 0:04:49.5]}
2... g6 {[%clk 0:04:57.6]} 3. Bb2 {[%clk 0:04:49.1]} 3... Bg7 {[%clk 0:04:57.2]}
4. Nc3 {[%clk 0:04:48.3]} 4... O-O {[%clk 0:04:56.6]} 5. e3 {[%clk 0:04:46.7]}
5... d6 {[%clk 0:04:55.7]} 6. Be2 {[%clk 0:04:45.8]} 6... e5 {[%clk 0:04:55.2]}
7. Nf3 {[%clk 0:04:42.7]} 7... Nc6 {[%clk 0:04:54.1]} 8. O-O {[%clk 0:04:41.8]}
8... e4 {[%clk 0:04:52.5]} 9. Nd4 {[%clk 0:04:40]} 9... Nxd4 {[%clk 0:04:51.3]}
10. exd4 {[%clk 0:04:39.7]} 10... h5 {[%clk 0:04:48.4]} 11. d3 {[%clk
0:04:36.5]} 11... Bf5 {[%clk 0:04:42.6]} 12. dxe4 {[%clk 0:04:35.3]} 12... Nxe4
{[%clk 0:04:41.9]} 13. Nxe4 {[%clk 0:04:34.4]} 13... Bxe4 {[%clk 0:04:41.4]} 14.
f3 {[%clk 0:04:28]} 14... Bf5 {[%clk 0:04:38.4]} 15. Bd3 {[%clk 0:04:20.6]}
15... Qg5 {[%clk 0:04:36.3]} 16. Bxf5 {[%clk 0:04:19]} 16... Qxf5 {[%clk
0:04:35.6]} 17. Rb1 {[%clk 0:04:11.6]} 17... h4 {[%clk 0:04:34.4]} 18. d5 {[%clk
0:04:07.4]} 18... Bxb2 {[%clk 0:04:32.1]} 19. Rxb2 {[%clk 0:04:05.5]} 19... h3
{[%clk 0:04:31.7]} 20. g3 {[%clk 0:04:03.9]} 20... Rfe8 {[%clk 0:04:29.2]} 21.
c3 {[%clk 0:03:56.2]} 21... Re3 {[%clk 0:04:26.7]} 22. Re2 {[%clk 0:03:50.4]}
22... Rae8 {[%clk 0:04:25.8]} 23. Rxe3 {[%clk 0:03:49.5]} 23... Rxe3 {[%clk
0:04:25.3]} 24. Kf2 {[%clk 0:03:27]} 24... Rxc3 {[%clk 0:04:22.8]} 25. Re1
{[%clk 0:03:21.7]} 25... Rc2+ {[%clk 0:04:19.2]} 26. Kf1 {[%clk 0:03:13.7]}
26... Rxh2 {[%clk 0:04:15.3]} 27. Re8+ {[%clk 0:03:11.9]} 27... Kh7 {[%clk
0:04:13.2]} 28. Kg1 {[%clk 0:02:56.3]} 28... Rg2+ {[%clk 0:04:11.9]} 29. Kh1
{[%clk 0:02:53.5]} 29... Rxg3 {[%clk 0:04:09.4]} 30. Qd4 {[%clk 0:02:40.5]}
30... Qxf3+ {[%clk 0:04:07.8]} 31. Kh2 {[%clk 0:02:37.4]} 31... Qg2# {[%clk
0:04:07.2]} 0-1

[Event "Live Chess"]
[Site "Chess.com"]
[Date "2024.06.02"]
[Round "-"]
[White "matt1979"]
[Black "vincents82"]
[Result "0-1"]
[WhiteElo "1377"]
[BlackElo "2039"]
[TimeControl "300"]
[EndTime "23:04:46 PDT"]
[Termination "vincents82 won by checkmate"]

1. f4 {[%clk 0:04:58.5]} 1... d5 {[%clk 0:04:52.7]} 2. e3 {[%clk 0:04:57.1]}
2... e6 {[%clk 0:04:50.9]} 3. b3 {[%clk 0:04:54.9]} 3... Nf6 {[%clk 0:04:48.9]}
4. Bb2 {[%clk 0:04:53.6]} 4... Be7 {[%clk 0:04:48]} 5. Nf3 {[%clk 0:04:52.1]}
5... O-O {[%clk 0:04:47]} 6. d3 {[%clk 0:04:39.4]} 6... c5 {[%clk 0:04:45.1]} 7.
Be2 {[%clk 0:04:37.3]} 7... b5 {[%clk 0:04:42.7]} 8. O-O {[%clk 0:04:35.6]} 8...
Bb7 {[%clk 0:04:41.4]} 9. Nbd2 {[%clk 0:04:32.4]} 9... Nbd7 {[%clk 0:04:40.2]}
10. Qe1 {[%clk 0:04:24.8]} 10... Qc7 {[%clk 0:04:38.5]} 11. Ne5 {[%clk
0:04:16.8]} 11... Bd6 {[%clk 0:04:35.1]} 12. Nxd7 {[%clk 0:04:13.9]} 12... Qxd7
{[%clk 0:04:33.2]} 13. Bxf6 {[%clk 0:04:08.6]} 13... gxf6 {[%clk 0:04:32.1]} 14.
Qg3+ {[%clk 0:04:03.5]} 14... Kh8 {[%clk 0:04:30.8]} 15. Qh4 {[%clk 0:04:02.2]}
15... Qe7 {[%clk 0:04:29.3]} 16. Rf3 {[%clk 0:03:56.9]} 16... f5 {[%clk
0:04:28.2]} 17. Qh5 {[%clk 0:03:50]} 17... d4 {[%clk 0:04:21.8]} 18. e4 {[%clk
0:03:38.3]} 18... Rg8 {[%clk 0:04:12.3]} 19. Rh3 {[%clk 0:03:34]} 19... f6
{[%clk 0:04:11]} 20. Rf1 {[%clk 0:03:11.6]} 20... fxe4 {[%clk 0:03:44]} 21. dxe4
{[%clk 0:03:07.9]} 21... f5 {[%clk 0:03:39.7]} 22. Bf3 {[%clk 0:02:44.9]} 22...
Bxf4 {[%clk 0:03:37.7]} 23. Rf2 {[%clk 0:02:18.7]} 23... Be3 {[%clk 0:03:34.3]}
24. exf5 {[%clk 0:02:07.1]} 24... Bxf3 {[%clk 0:03:22.4]} 25. Rxf3 {[%clk
0:02:01.5]} 25... Qg7 {[%clk 0:03:16.2]} 26. Qh3 {[%clk 0:01:55.3]} 26... exf5
{[%clk 0:02:57.2]} 27. Qxf5 {[%clk 0:01:48.7]} 27... Qxg2# {[%clk 0:02:53.2]}
0-1

[Event "Live Chess"]
[Site "Chess.com"]
[Date "2024.06.02"]
[Round "-"]
[White "Isambard_Thomas"]
[Black "Delacorta"]
[Result "1-0"]
[WhiteElo "2152"]
[BlackElo "1514"]
[TimeControl "300"]
[EndTime "23:05:35 PDT"]
[Termination "Isambard_Thomas won on time"]

1. d4 {[%clk 0:04:59.1]} 1... Nf6 {[%clk 0:04:57.1]} 2. Nf3 {[%clk 0:04:53.3]}
2... g6 {[%clk 0:04:49]} 3. Bg5 {[%clk 0:04:51.9]} 3... Bg7 {[%clk 0:04:47.7]}
4. e3 {[%clk 0:04:51.2]} 4... d5 {[%clk 0:04:42.5]} 5. Bd3 {[%clk 0:04:50.3]}
5... Bg4 {[%clk 0:04:40.7]} 6. Nbd2 {[%clk 0:04:48.8]} 6... O-O {[%clk
0:04:39.1]} 7. h3 {[%clk 0:04:48.3]} 7... Bxf3 {[%clk 0:04:30.4]} 8. Nxf3 {[%clk
0:04:42.6]} 8... Ne4 {[%clk 0:04:25.5]} 9. h4 {[%clk 0:04:41.4]} 9... Nxg5
{[%clk 0:04:20.4]} 10. Nxg5 {[%clk 0:04:28.8]} 10... e5 {[%clk 0:04:12.2]} 11.
c3 {[%clk 0:04:19]} 11... e4 {[%clk 0:03:52.8]} 12. Be2 {[%clk 0:04:16.1]} 12...
f5 {[%clk 0:03:50.1]} 13. Qb3 {[%clk 0:04:12.3]} 13... Qd6 {[%clk 0:03:00.8]}
14. h5 {[%clk 0:03:49.6]} 14... Bh6 {[%clk 0:02:25.3]} 15. Nxh7 {[%clk
0:03:35.1]} 15... Kxh7 {[%clk 0:02:22.1]} 16. hxg6+ {[%clk 0:03:33.6]} 16...
Kxg6 {[%clk 0:02:20.9]} 17. Bh5+ {[%clk 0:03:29.4]} 17... Kg7 {[%clk 0:02:05.2]}
18. Rh3 {[%clk 0:02:49.8]} 18... Nd7 {[%clk 0:01:26.5]} 19. Rg3+ {[%clk
0:02:43.9]} 19... Kh8 {[%clk 0:01:25.5]} 20. Rg6 {[%clk 0:02:41.6]} 20... Rf6
{[%clk 0:01:15.7]} 21. Rg3 {[%clk 0:02:18.6]} 21... Nb6 {[%clk 0:00:59.3]} 22.
O-O-O {[%clk 0:02:16.3]} 22... Rg8 {[%clk 0:00:56.3]} 23. Rxg8+ {[%clk
0:01:56.2]} 23... Kxg8 {[%clk 0:00:54.8]} 24. Rg1 {[%clk 0:01:49.1]} 24... Nc4
{[%clk 0:00:46.7]} 25. Qxb7 {[%clk 0:01:43.1]} 25... Nxe3 {[%clk 0:00:35.2]} 26.
Kb1 {[%clk 0:01:31]} 26... Ng4 {[%clk 0:00:29.9]} 27. Bxg4 {[%clk 0:01:17.3]}
27... fxg4 {[%clk 0:00:28.4]} 28. Qc8+ {[%clk 0:01:16.7]} 28... Rf8 {[%clk
0:00:25]} 29. Qxg4+ {[%clk 0:01:16]} 29... Kh7 {[%clk 0:00:22.4]} 30. Qh4 {[%clk
0:00:44.9]} 30... Qf4 {[%clk 0:00:20.7]} 31. Qe7+ {[%clk 0:00:40.8]} 31... Rf7
{[%clk 0:00:18.9]} 32. Qe5 {[%clk 0:00:19.5]} 32... Qxf2 {[%clk 0:00:16.9]} 33.
Rh1 {[%clk 0:00:15.3]} 33... Qf4 {[%clk 0:00:13.9]} 34. Qh5 {[%clk 0:00:13.2]}
34... Qe3 {[%clk 0:00:07.8]} 35. a3 {[%clk 0:00:10.7]} 35... Qd3+ {[%clk
0:00:06.8]} 36. Ka2 {[%clk 0:00:09.7]} 36... Qe3 {[%clk 0:00:06.6]} 37. Qxf7+
{[%clk 0:00:07.2]} 37... Kh8 {[%clk 0:00:01.9]} 38. Qe8+ {[%clk 0:00:05.3]}
38... Kh7 {[%clk 0:00:01]} 39. Qd7+ {[%clk 0:00:04.3]} 1-0

[Event "Live Chess"]
[Site "Chess.com"]
[Date "2024.06.02"]
[Round "-"]
[White "Bradfield133"]
[Black "RichardABates"]
[Result "0-1"]
[WhiteElo "1868"]
[BlackElo "2369"]
[TimeControl "300"]
[EndTime "23:06:15 PDT"]
[Termination "RichardABates won on time"]

1. c4 {[%clk 0:04:57.8]} 1... g6 {[%clk 0:04:58.3]} 2. g3 {[%clk 0:04:56.6]}
2... Bg7 {[%clk 0:04:56.5]} 3. Bg2 {[%clk 0:04:55.3]} 3... e5 {[%clk 0:04:55.1]}
4. Nc3 {[%clk 0:04:53.8]} 4... f5 {[%clk 0:04:53.6]} 5. d3 {[%clk 0:04:49]} 5...
Nf6 {[%clk 0:04:51.8]} 6. e4 {[%clk 0:04:47.5]} 6... d6 {[%clk 0:04:47.1]} 7.
Nge2 {[%clk 0:04:46]} 7... O-O {[%clk 0:04:44.9]} 8. O-O {[%clk 0:04:44.8]} 8...
c6 {[%clk 0:04:43.6]} 9. h3 {[%clk 0:04:39.8]} 9... fxe4 {[%clk 0:04:37.6]} 10.
dxe4 {[%clk 0:04:37.4]} 10... Be6 {[%clk 0:04:36.2]} 11. b3 {[%clk 0:04:33.7]}
11... Qd7 {[%clk 0:04:30.9]} 12. Kh2 {[%clk 0:04:30.5]} 12... Na6 {[%clk
0:04:29]} 13. Be3 {[%clk 0:04:09]} 13... b6 {[%clk 0:04:13]} 14. Qd2 {[%clk
0:04:05.3]} 14... Rad8 {[%clk 0:04:09.7]} 15. Rad1 {[%clk 0:03:52.5]} 15... Nc7
{[%clk 0:03:45.3]} 16. Bg5 {[%clk 0:03:41.2]} 16... Qf7 {[%clk 0:03:35.2]} 17.
Qe3 {[%clk 0:03:21.7]} 17... Bc8 {[%clk 0:03:32.3]} 18. Rd2 {[%clk 0:03:15.3]}
18... Ne6 {[%clk 0:03:30.6]} 19. Bh6 {[%clk 0:03:06.6]} 19... c5 {[%clk
0:03:03.1]} 20. Bxg7 {[%clk 0:03:00]} 20... Kxg7 {[%clk 0:02:56.9]} 21. f4
{[%clk 0:02:44.9]} 21... Nd4 {[%clk 0:02:53.9]} 22. fxe5 {[%clk 0:02:28.9]}
22... dxe5 {[%clk 0:02:51.4]} 23. Nd5 {[%clk 0:02:24.4]} 23... Qe6 {[%clk
0:02:46.9]} 24. Nec3 {[%clk 0:01:34.2]} 24... Bb7 {[%clk 0:02:42.9]} 25. Rdf2
{[%clk 0:01:27.8]} 25... Nxd5 {[%clk 0:02:29.4]} 26. exd5 {[%clk 0:01:24.6]}
26... Qe7 {[%clk 0:02:07.8]} 27. Rxf8 {[%clk 0:01:12.2]} 27... Rxf8 {[%clk
0:02:04.8]} 28. Rxf8 {[%clk 0:01:12.1]} 28... Kxf8 {[%clk 0:01:39.8]} 29. d6
{[%clk 0:01:10.2]} 29... Qf7 {[%clk 0:01:38.5]} 30. Bxb7 {[%clk 0:01:06.4]}
30... Qxb7 {[%clk 0:01:36]} 31. Qh6+ {[%clk 0:01:00.7]} 31... Qg7 {[%clk
0:01:23.8]} 32. Qxg7+ {[%clk 0:00:40]} 32... Kxg7 {[%clk 0:01:22.4]} 33. Nb5
{[%clk 0:00:32.4]} 33... Kf7 {[%clk 0:01:19.2]} 34. Nxa7 {[%clk 0:00:28.6]}
34... Ke6 {[%clk 0:01:16.7]} 35. Nc8 {[%clk 0:00:24]} 35... e4 {[%clk
0:01:13.9]} 36. Kg2 {[%clk 0:00:21.5]} 36... e3 {[%clk 0:01:11.4]} 37. Kf1
{[%clk 0:00:19.9]} 37... Kd7 {[%clk 0:01:02.1]} 38. Nxb6+ {[%clk 0:00:17.4]}
38... Kxd6 {[%clk 0:01:00.7]} 39. Nd5 {[%clk 0:00:16.2]} 39... e2+ {[%clk
0:00:56.5]} 40. Ke1 {[%clk 0:00:15.2]} 40... Ke5 {[%clk 0:00:54.8]} 41. Nc3
{[%clk 0:00:13.6]} 41... Nf3+ {[%clk 0:00:44.9]} 42. Kxe2 {[%clk 0:00:12]} 42...
Ng5 {[%clk 0:00:43.8]} 43. h4 {[%clk 0:00:10.4]} 43... Ne6 {[%clk 0:00:42.4]}
44. Na4 {[%clk 0:00:09.3]} 44... Nd4+ {[%clk 0:00:40.6]} 45. Kd3 {[%clk
0:00:08.1]} 45... Nf5 {[%clk 0:00:39.1]} 46. Nxc5 {[%clk 0:00:07.1]} 46... Nxg3
{[%clk 0:00:37.9]} 47. b4 {[%clk 0:00:07]} 47... Nf5 {[%clk 0:00:36.1]} 48. b5
{[%clk 0:00:06.9]} 48... Nxh4 {[%clk 0:00:34.3]} 49. b6 {[%clk 0:00:06]} 49...
Kd6 {[%clk 0:00:32.4]} 50. b7 {[%clk 0:00:05.9]} 50... Kc7 {[%clk 0:00:31.2]}
51. Na6+ {[%clk 0:00:04.5]} 51... Kxb7 {[%clk 0:00:28.9]} 52. Nb4 {[%clk
0:00:04.4]} 52... Nf5 {[%clk 0:00:27.1]} 53. Ke4 {[%clk 0:00:04.3]} 53... Nd6+
{[%clk 0:00:25.7]} 54. Ke5 {[%clk 0:00:04.1]} 54... Nxc4+ {[%clk 0:00:24.6]} 55.
Kf6 {[%clk 0:00:02.4]} 55... Nd6 {[%clk 0:00:22.5]} 56. Kg7 {[%clk 0:00:01.6]}
56... g5 {[%clk 0:00:21.1]} 57. Kxh7 {[%clk 0:00:00.4]} 57... g4 {[%clk
0:00:20.2]} 0-1